Workbook

Sheet SSC Set-up Standards
I1: SSC Center Set-up Standards Owner/ Department: SMSA Service Center (SSC)
A3: Sl. No. | B3: Specification/Item | C3: Type C | E3: Type B | G3: Type A | I3: Remarks
C4: Minimum | D4: Maximum | E4: Minimum | F4: Maximum | G4: Minimum | H4: Maximum
A5: 1 | B5: Width* | C5: 3.5 | D5: 5 | E5: =C5*2 -> 7 | F5: =D5*2 -> 10 | G5: =C5*3 -> 10.5 | H5: =D5*3 -> 15 | I5: Width will subject for special approval If it is vary from the standard.
A6: =A5+1 -> 2 | B6: Depth | C6: 6 | D6: 10 | E6: =C6*2 -> 12 | F6: =D6*2 -> 20 | G6: =C6*3 -> 18 | H6: =D6*3 -> 30
A7: =A6+1 -> 3 | B7: Total area (M2) | C7: =C5*C6 -> 21 | D7: =D5*D6 -> 50 | E7: 84 | F7: 200 | G7: 189 | H7: 450
A8: 4 | B8: Customer (LM) | C8: 2.22 | D8: =C8/C7*D7 -> 5.285714286 | E8: =C8*2 -> 4.44 | F8: =E8/E7*F7 -> 10.57142857 | G8: =C8*3 -> 6.66 | H8: =G8/G7*H7 -> 15.85714286 | I8: LM = Linear meter
A9: 5 | B9: Counter (LM) | C9: 0.96 | D9: 0.96 | E9: 0.96 | F9: 0.96 | G9: 0.96 | H9: 0.96
A10: 6 | B10: Employee (LM) | C10: 1.28 | D10: 2 | E10: 1.28 | F10: 2 | G10: 1.28 | H10: 2
A11: 7 | B11: Total front area (LM) | C11: =SUM(C8:C10) -> 4.46 | D11: =SUM(D8:D10) -> 8.245714286 | E11: 6.68 | F11: 13.53142857 | G11: 8.9 | H11: 18.81714286
A12: =A11+1 -> 8 | B12: Front Area Space (SM) | C12: =C11*C5 -> 15.61 | D12: =D11*D5 -> 41.22857143 | E12: 46.76 | F12: 135.3142857 | G12: 93.45 | H12: 282.2571429
A13: 9 | B13: Store space (SM) | C13: =C7-C12 -> 5.39 | D13: 8.771428571 | E13: 37.24 | F13: 64.68571429 | G13: 95.55 | H13: 167.7428571
A15: =A13+1 -> 10 | B15: Racks (Number) | C15: 3 | D15: 5 | E15: 4 | F15: 10 | G15: 6 | H15: 15
A16: 11 | B16: Store door (Width) M | C16: 1 | D16: 1.2 | E16: 1.2 | F16: 1.8 | G16: 1.8 | H16: 1.8
A17: 12 | B17: Store door (Number) | C17: 1 | D17: 1 | E17: 1 | F17: 1 | G17: 1 | H17: 2
A18: 13 | B18: Front Door (Width) M | C18: 1 | D18: 1.8 | E18: 1.8 | F18: 1.8 | G18: 1.8 | H18: 1.8
A19: 14 | B19: Front Door (Number) | C19: 1 | D19: 1 | E19: 1 | F19: 2 | G19: 1 | H19: 2
A20: =A18+1 -> 14 | B20: Shutter Door (Number) | C20: 1 | D20: 1 | E20: 1 | F20: 2 | G20: 1 | H20: 2
A21: =A18+1 -> 14 | B21: Outdoor sign (Width) M | C21: 3.5 | D21: 5 | E21: 7 | F21: 10 | G21: 10.5 | H21: 15
A22: =A19+1 -> 15 | B22: Outdoor flag sign (Number) | C22: 0 | D22: 0 | E22: 0 | F22: 0 | G22: 0 | H22: 0
A23: 16 | B23: Number of TVs | C23: 1 | D23: 1 | E23: 1 | F23: 2 | G23: 1 | H23: 2
A24: 17 | B24: Wall graphics (Set 4 Pieces) | C24: 1 | D24: 1 | E24: 1 | F24: 2 | G24: 1 | H24: 3
A25: 18 | B25: Back-wall signs | C25: 0 | D25: 1 | E25: 0 | F25: 1 | G25: 0 | H25: 1
A26: 19 | B26: Wall clock | C26: 0 | D26: 1 | E26: 0 | F26: 1 | G26: 0 | H26: 1
A27: 20 | B27: AC (Split/Tower Units Number) | C27: 1 | D27: 1 | E27: 1 | F27: 2 | G27: 3 | H27: 4
A28: =A26+1 -> 20 | B28: Lighting (60cm X 60cm) | C28: 4 | D28: 9 | E28: 6 | F28: 9 | G28: 6 | H28: 30
A29: =A27+1 -> 21 | B29: Emergency Lights | C29: 1 | D29: 2 | E29: 1 | F29: 4 | G29: 1 | H29: 6
A30: 22 | B30: Washroom | C30: 0 | D30: 1 | E30: 0 | F30: 1 | G30: 0 | H30: 2
A31: 23 | B31: Wash basin | C31: 0 | D31: 1 | E31: 0 | F31: 1 | G31: 0 | H31: 2
A32: 24 | B32: Curtains (set 3 pieces) | C32: 0 | D32: 1 | E32: 0 | F32: 2 | G32: 0 | H32: 4
A33: 25 | B33: License Frames (Set) | C33: 1 | D33: 1 | E33: 1 | F33: 1 | G33: 1 | H33: 1
A34: 26 | B34: Visitor chairs (set 3 chairs) | C34: 0 | D34: 1 | E34: 0 | F34: 2 | G34: 1 | H34: 4
A35: 27 | B35: Visitor table and chairs (Set 1 table & 4 chairs) | C35: 0 | D35: 0 | E35: 0 | F35: 0 | G35: 0 | H35: 0
A36: 28 | B36: Counter (Set: Type A + Type B + Type E + Type F) | C36: 1 | D36: 1 | E36: 1 | F36: 2 | G36: 2 | H36: 4
A37: =A35+1 -> 28 | B37: Counter Chairs (employee chairs) | C37: 1 | D37: 2 | E37: 1 | F37: 3 | G37: 1 | H37: 6
A38: =A36+1 -> 29 | B38: Counter door | C38: 1 | D38: 1 | E38: 1 | F38: 2 | G38: 1 | H38: 2
A39: 30 | B39: Weighting scale (150 kg) | C39: 1 | D39: 1 | E39: 1 | F39: 1 | G39: 1 | H39: 2
A40: 31 | B40: Weighting scale (50 Kg) | C40: 0 | D40: 1 | E40: 0 | F40: 2 | G40: 0 | H40: 4
A41: 32 | B41: Fire Extinguisher(s) | C41: 1 | D41: 2 | E41: 2 | F41: 4 | G41: 2 | H41: 6
A42: 33 | B42: Queuing system | C42: 0 | D42: 0 | E42: 0 | F42: 0 | G42: 0 | H42: 1
A43: 34 | B43: Point of Sale Machine (PoS) | C43: 1 | D43: 1 | E43: 1 | F43: 2 | G43: 1 | H43: 4
A44: =A43+1 -> 35 | B44: MADA Machine (PoS) | C44: 1 | D44: 1 | E44: 1 | F44: 1 | G44: 1 | H44: 2
A45: =A43+1 -> 35 | B45: Printer (4 in 1) | C45: 1 | D45: 1 | E45: 1 | F45: 1 | G45: 1 | H45: 2
A46: =A44+1 -> 36 | B46: Printer Table | C46: 0 | D46: 0 | E46: 0 | F46: 0 | G46: 0 | H46: 0
A47: 37 | B47: Telephone line | C47: 1 | D47: 1 | E47: 1 | F47: 1 | G47: 1 | H47: 2
A48: 38 | B48: Telephone Set | C48: 1 | D48: 1 | E48: 1 | F48: 1 | G48: 1 | H48: 2
A49: 39 | B49: CCTV (as per QRM recommendation) | C49: 1 | D49: 1 | E49: 1 | F49: 1 | G49: 1 | H49: 1
A50: 40 | B50: Dust bin | C50: 1 | D50: 2 | E50: 1 | F50: 3 | G50: 1 | H50: 6
A51: 41 | B51: First Aid (Box) | C51: 1 | D51: 1 | E51: 1 | F51: 2 | G51: 1 | H51: 2
A52: 42 | B52: Ramp | C52: 1 | D52: 1 | E52: 1 | F52: 2 | G52: 1 | H52: 2
A53: 43 | B53: Parking sign | C53: 0 | D53: 0 | E53: 0 | F53: 0 | G53: 0 | H53: 0
A54: 44 | B54: OB boxes | C54: 1 | D54: 2 | E54: 1 | F54: 4 | G54: 1 | H54: 6
A55: 45 | B55: Marketing Material (Stands, etc) (Number) | C55: 0 | D55: 1 | E55: 0 | F55: 2 | G55: 0 | H55: 4
A56: 46 | B56: Working Hours sign/ QR Code sign | C56: 1 | D56: 1 | E56: 1 | F56: 1 | G56: 1 | H56: 2
